bitfinex-derivatives/quotes_BTCF0:USTF0_20241210
["timestamp","ask_amount","ask_price","bid_price","bid_amount"]
[1733840507213,0.05113646,97953.0,97952.0,0.014]
[1733840507426,0.10077095,97953.0,97952.0,0.014]
[1733840507815,0.10077095,97953.0,97952.0,0.005]
[1733840507816,0.28400232,97953.0,97952.0,0.005]
[1733840508014,0.051038,97932.0,97929.0,0.18329526]
[1733840508232,0.3608,97931.0,97925.0,0.18329526]
[1733840508424,0.051045,97918.0,97915.0,0.18329526]
[1733840508628,0.3608,97917.0,97910.0,0.18329526]
[1733840508819,0.3608,97917.0,97908.0,0.00076]
[1733840510026,0.15018016,97922.0,97921.0,0.051043]
[1733840510225,8.641e-05,97930.0,97921.0,0.051043]
[1733840510525,0.0207384,97930.0,97921.0,0.051043]
[1733840511226,8.641e-05,97930.0,97929.0,0.051039]
[1733840511426,8.641e-05,97930.0,97929.0,0.411839]
[1733840511916,8.641e-05,97930.0,97929.0,0.42253477]
[1733840512121,0.15018016,97950.0,97946.0,0.05103]
[1733840512322,0.051027,97953.0,97946.0,0.05103]
[1733840512521,0.051027,97952.0,97946.0,0.05103]
[1733840513122,7.194e-05,97951.0,97939.0,0.3608]
[1733840513328,0.3608,97945.0,97929.0,0.01069577]
[1733840513629,0.15018016,97940.0,97926.0,0.0015317]
[1733840514225,0.20121416,97940.0,97933.0,0.051037]
[1733840514526,0.051036,97936.0,97928.0,0.411839]
[1733840514725,0.051036,97936.0,97929.0,0.051039]
[1733840515424,0.051037,97934.0,97926.0,0.0015317]
[1733840516126,0.3608,97937.0,97929.0,0.3608]
[1733840516326,0.001,97936.0,97929.0,0.3608]
[1733840516530,0.001,97936.0,97935.0,0.051036]
[1733840517028,0.15018016,97950.0,97949.0,0.051029]
[1733840517231,0.051027,97952.0,97949.0,0.051029]
[1733840517427,0.09140552,97957.0,97944.0,0.051031]
[1733840518017,0.09140552,97957.0,97940.0,0.3608]
[1733840518223,0.15018016,97950.0,97940.0,0.3608]
[1733840518424,0.15018016,97950.0,97941.0,0.1375]
[1733840518624,0.15018016,97950.0,97949.0,0.052029]
[1733840518927,0.00907194,97951.0,97950.0,0.051028]
[1733840519122,7.194e-05,97951.0,97950.0,0.191328]
[1733840519325,0.00507194,97951.0,97950.0,0.552128]
[1733840520031,0.00907194,97951.0,97941.0,0.1375]
[1733840520330,0.1592521,97951.0,97941.0,0.14839379]
[1733840520526,0.1592521,97951.0,97940.0,0.3608]
[1733840520527,0.1592521,97951.0,97943.0,0.051032]
[1733840520829,0.05609994,97951.0,97950.0,0.004]
[1733840521532,0.00507194,97951.0,97950.0,0.004]
[1733840521726,7.194e-05,97951.0,97950.0,0.004]
[1733840522035,7.194e-05,97951.0,97950.0,0.055028]
[1733840522536,7.194e-05,97951.0,97950.0,0.004]
[1733840522537,0.05409994,97951.0,97950.0,0.004]
[1733840522726,0.14550103,97951.0,97950.0,0.004]
[1733840523126,0.05109994,97951.0,97950.0,0.004]
[1733840523421,0.051031,97944.0,97943.0,0.001]
[1733840523728,0.411831,97944.0,97943.0,0.001]
[1733840524332,0.3608,97944.0,97925.0,0.051041]
[1733840524540,0.3608,97931.0,97925.0,0.051041]
[1733840524828,0.3608,97931.0,97926.0,0.0525727]
[1733840525030,0.0914392,97930.0,97929.0,0.051039]
[1733840525241,0.3608,97931.0,97929.0,0.051039]
[1733840525535,0.3608,97931.0,97930.0,0.051039]
[1733840525922,0.05104,97928.0,97926.0,0.0015317]
[1733840526633,0.0914392,97927.0,97926.0,0.0015317]
[1733840527527,0.0914392,97929.0,97927.0,0.05104]
[1733840527726,0.0914392,97929.0,97926.0,0.0015317]
[1733840527727,0.0914392,97928.0,97926.0,0.0015317]
[1733840527932,0.0914392,97928.0,97909.0,0.3608]
[1733840527933,0.0914392,97929.0,97915.0,0.051046]
[1733840528134,0.0914392,97929.0,97909.0,0.3608]
[1733840528135,0.0914392,97924.0,97913.0,0.051047]
[1733840528437,0.0914392,97923.0,97913.0,0.051047]
[1733840528640,0.0914392,97923.0,97921.0,0.051043]
[1733840528829,0.0914392,97923.0,97910.0,0.051049]
[1733840528830,0.49378017,97925.0,97923.0,0.051042]
[1733840529133,0.34308,97925.0,97923.0,0.051042]
[1733840529321,0.001,97924.0,97923.0,0.051042]
[1733840530234,0.34308,97925.0,97923.0,0.053042]
[1733840530732,0.34308,97925.0,97923.0,0.057042]
[1733840532033,0.34308,97925.0,97923.0,0.006]
[1733840532234,0.051042,97924.0,97923.0,0.006]
[1733840532434,0.1424812,97924.0,97923.0,0.006]
[1733840532636,0.1424812,97924.0,97923.0,0.01]
[1733840532637,0.05211495,97924.0,97923.0,0.01]
[1733840532832,0.19181495,97924.0,97923.0,0.01]
[1733840533141,0.19181495,97924.0,97923.0,0.00247505]
[1733840533445,0.13977295,97924.0,97923.0,0.002]
[1733840534243,0.051044,97919.0,97904.0,0.051052]
[1733840534541,0.09154135,97913.0,97904.0,0.051052]
[1733840534841,0.09154135,97913.0,97905.0,0.051051]
[1733840535529,0.24172151,97914.0,97903.0,0.00153206]
[1733840535730,0.051052,97905.0,97903.0,0.00153206]
[1733840535932,0.09154135,97904.0,97903.0,0.00153206]
[1733840536141,0.051052,97905.0,97893.0,0.05117561]
[1733840536334,0.3608,97897.0,97893.0,0.05117561]
[1733840536852,0.3608,97897.0,97896.0,0.051056]
[1733840537542,0.24174493,97903.0,97899.0,0.051055]
[1733840537743,0.001,97905.0,97899.0,0.051055]
[1733840537934,0.001,97905.0,97904.0,0.411852]
[1733840539935,0.09156477,97916.0,97910.0,0.051049]
[1733840540342,0.09156477,97916.0,97904.0,0.3608]
[1733840540544,0.36132001,97919.0,97904.0,0.3678]
[1733840540545,0.3608,97919.0,97904.0,0.3678]
[1733840540835,0.02091333,97924.0,97904.0,0.3678]
[1733840540836,7.295e-05,97924.0,97923.0,0.051042]
[1733840542338,7.295e-05,97924.0,97923.0,0.2339586]
[1733840542651,7.295e-05,97924.0,97923.0,0.051042]
[1733840544046,0.00107295,97924.0,97923.0,0.051042]
[1733840544439,0.00207295,97924.0,97923.0,0.058042]
[1733840544631,0.00107295,97924.0,97923.0,0.058042]
[1733840544837,0.00107295,97924.0,97923.0,0.062042]
[1733840546538,0.00107295,97924.0,97923.0,0.061042]
[1733840546734,7.295e-05,97924.0,97923.0,0.054042]
[1733840547139,0.00107295,97924.0,97923.0,0.061042]
[1733840547443,0.00107295,97924.0,97923.0,0.062042]
[1733840548246,0.09148079,97947.0,97931.0,0.051038]
[1733840548447,0.09148079,97957.0,97950.0,0.051028]
[1733840548744,0.15018016,97960.0,97959.0,0.051023]
[1733840548949,0.3608,97967.0,97966.0,0.05102]
[1733840549137,0.411819,97967.0,97966.0,0.05102]
[1733840549452,0.41190735,97967.0,97966.0,0.05102]
[1733840550442,0.36688835,97967.0,97966.0,0.05202]
[1733840552151,0.36688835,97967.0,97966.0,0.001]
[1733840552445,0.36688835,97967.0,97966.0,0.002]
[1733840552446,0.46736914,97967.0,97966.0,0.002]
[1733840552648,0.49784489,97967.0,97966.0,0.002]
[1733840552859,0.37588835,97967.0,97966.0,0.002]
[1733840553042,0.42690735,97967.0,97966.0,0.002]
[1733840553349,0.42690735,97967.0,97946.0,0.00153151]
[1733840553350,0.051025,97956.0,97947.0,0.05103]
[1733840553547,0.051029,97950.0,97946.0,0.00153151]
[1733840553749,0.191329,97949.0,97946.0,0.00153151]
[1733840554048,0.0913726,97948.0,97946.0,0.00153151]
[1733840554352,0.051031,97944.0,97934.0,0.051036]
[1733840554547,0.3608,97938.0,97934.0,0.051036]
[1733840554752,0.3608,97938.0,97937.0,0.051035]
[1733840557146,0.3608,97938.0,97937.0,0.054035]
[1733840558251,0.3608,97938.0,97937.0,0.003]
[1733840558946,0.3628,97938.0,97937.0,0.003]
[1733840559248,0.45420069,97938.0,97937.0,0.002]
[1733840559646,0.3628,97938.0,97937.0,0.002]
[1733840559842,0.3638,97938.0,97920.0,0.01058921]
[1733840560047,0.3638,97938.0,97937.0,0.051035]
[1733840560951,0.3618,97938.0,97937.0,0.051035]
[1733840561158,0.3628,97938.0,97937.0,0.051035]
[1733840562051,0.3618,97938.0,97937.0,0.051035]
[1733840562553,0.3608,97938.0,97937.0,0.051035]
[1733840562753,0.3618,97938.0,97937.0,0.051035]
[1733840562947,0.001,97938.0,97937.0,0.051035]
[1733840563154,0.34308,97939.0,97937.0,0.051035]
[1733840563353,0.34308,97939.0,97937.0,0.003]
[1733840563555,0.394114,97939.0,97937.0,0.003]
[1733840563749,0.09139886,97938.0,97937.0,0.003]
[1733840564559,0.411834,97938.0,97937.0,0.003]
[1733840564854,0.051035,97936.0,97914.0,0.00153189]
[1733840565161,0.411843,97922.0,97914.0,0.00153189]
[1733840565360,0.051044,97920.0,97914.0,0.00153189]
[1733840565556,0.051045,97918.0,97914.0,0.00153189]
[1733840565749,0.051046,97915.0,97914.0,0.00153189]
[1733840566265,0.051046,97915.0,97914.0,0.00553189]
[1733840566452,0.14259812,97915.0,97914.0,0.00553189]
[1733840566762,0.0511573,97915.0,97914.0,0.00553189]
[1733840566952,0.1730784,97915.0,97914.0,0.00553189]
[1733840567149,0.0511573,97915.0,97914.0,0.00553189]
[1733840567348,0.0511573,97915.0,97914.0,0.005]
[1733840567551,0.0001113,97915.0,97914.0,0.005]
[1733840567960,0.0001113,97915.0,97914.0,0.056047]
[1733840568260,0.0001113,97915.0,97914.0,0.055047]
[1733840568562,0.0001113,97915.0,97914.0,0.056047]
[1733840568751,0.0001113,97915.0,97914.0,0.053047]
[1733840569958,0.0001113,97915.0,97914.0,0.413847]
[1733840570350,0.0001113,97915.0,97914.0,0.549047]
[1733840570557,0.0001113,97915.0,97914.0,0.002]
[1733840570758,0.0001113,97915.0,97914.0,0.053047]
[1733840571654,0.0001113,97915.0,97914.0,0.002]
[1733840571854,0.0511573,97915.0,97914.0,0.002]
[1733840572751,0.17317565,97915.0,97914.0,0.002]
[1733840573469,0.0511573,97915.0,97914.0,0.002]
[1733840573761,0.0001113,97915.0,97914.0,0.002]
[1733840574258,0.0001113,97915.0,97914.0,0.053047]
[1733840575253,0.0001113,97915.0,97914.0,0.413847]
[1733840576166,0.0001113,97915.0,97914.0,0.42443599]
[1733840576961,0.0001113,97915.0,97914.0,0.413847]
[1733840577763,0.0001113,97915.0,97914.0,0.053047]
[1733840578467,0.0001113,97915.0,97914.0,0.331547]
[1733840578763,0.0001113,97915.0,97914.0,0.468847]
[1733840580463,0.15018016,97924.0,97914.0,0.7786]
[1733840580665,0.15018016,97924.0,97923.0,0.411842]
[1733840580868,0.09147547,97933.0,97931.0,0.051038]
[1733840580869,0.0915322,97932.0,97931.0,0.051038]
[1733840581053,0.051037,97932.0,97931.0,0.051038]
[1733840581568,0.05115928,97932.0,97931.0,0.051038]
[1733840581877,0.00012228,97932.0,97931.0,0.051038]
[1733840582564,0.00012228,97932.0,97920.0,0.18302753]
[1733840582764,0.411842,97924.0,97916.0,0.051046]
[1733840582957,0.09164707,97921.0,97920.0,0.051044]
[1733840583158,0.12197133,97923.0,97907.0,0.18302753]
[1733840583362,0.09164967,97913.0,97905.0,0.3608]
[1733840583561,0.20122616,97915.0,97911.0,0.051048]
[1733840583770,0.51332294,97914.0,97911.0,0.051048]
[1733840584162,0.3608,97914.0,97911.0,0.051048]
[1733840584356,0.3608,97914.0,97899.0,0.1348]
[1733840584567,0.09167121,97903.0,97902.0,0.051053]
[1733840584761,0.09166878,97904.0,97903.0,0.051053]
[1733840585172,0.15018016,97910.0,97902.0,0.051053]
[1733840585359,0.15018016,97910.0,97909.0,0.051049]
[1733840585964,0.48302828,97914.0,97903.0,0.004]
[1733840586165,0.09167295,97909.0,97903.0,0.004]
[1733840586369,0.09167295,97906.0,97905.0,0.051051]
[1733840586669,0.17327828,97909.0,97903.0,0.004]
[1733840586871,0.001,97910.0,97905.0,0.051052]
[1733840586872,0.12222828,97906.0,97905.0,0.051052]
[1733840587172,0.12222828,97906.0,97903.0,0.004]
[1733840587173,0.15252294,97913.0,97911.0,0.051048]
[1733840587373,0.51484295,97914.0,97912.0,0.051048]
[1733840587563,0.51432294,97914.0,97912.0,0.051048]
[1733840587761,0.51332294,97914.0,97912.0,0.051048]
[1733840588175,0.3608,97914.0,97912.0,0.051048]
[1733840588580,0.3608,97914.0,97909.0,0.002]
[1733840588581,0.3608,97914.0,97913.0,0.051047]
[1733840589775,0.3608,97914.0,97913.0,0.052047]
[1733840590363,0.3618,97914.0,97913.0,0.052047]
[1733840591067,0.3618,97914.0,97913.0,0.056047]
[1733840591970,0.001,97914.0,97913.0,0.056047]
[1733840592565,0.3618,97914.0,97913.0,0.005]
[1733840592770,0.412847,97914.0,97913.0,0.005]
[1733840593176,0.56536994,97914.0,97913.0,0.005]
[1733840593474,0.412847,97914.0,97913.0,0.005]
[1733840593675,0.52508329,97914.0,97913.0,0.005]
[1733840593875,0.37223776,97914.0,97913.0,0.056047]
[1733840594077,0.3618,97914.0,97913.0,0.056047]
[1733840594982,0.45351414,97914.0,97913.0,0.056047]
[1733840595280,0.001,97914.0,97913.0,0.056047]
[1733840595973,0.09271101,97914.0,97913.0,0.056047]
[1733840596173,0.09271101,97914.0,97913.0,0.005]
[1733840596174,0.052047,97914.0,97913.0,0.005]
[1733840596374,0.20489034,97914.0,97913.0,0.005]
[1733840596679,0.05065553,97914.0,97913.0,0.005]
[1733840597380,0.001,97914.0,97913.0,0.005]
[1733840597783,0.15386272,97914.0,97913.0,0.056047]
[1733840598175,0.16463924,97914.0,97913.0,0.056047]
[1733840598478,0.16463959,97914.0,97913.0,0.056047]
[1733840598781,0.01177652,97914.0,97913.0,0.056047]
[1733840599077,0.16463431,97914.0,97913.0,0.056047]
[1733840599279,0.01177652,97914.0,97913.0,0.056047]
[1733840599877,0.001,97914.0,97913.0,0.056047]
[1733840600888,0.001,97914.0,97913.0,0.23940031]
[1733840601070,0.001,97914.0,97913.0,0.056047]
[1733840602185,0.12227642,97927.0,97920.0,0.051044]
[1733840602479,0.09168304,97945.0,97933.0,0.051037]
[1733840602675,0.2418632,97950.0,97944.0,0.411831]
[1733840603072,0.09161898,97950.0,97949.0,0.051029]
[1733840603476,0.15018016,97960.0,97951.0,0.051028]
[1733840603477,0.09161898,97959.0,97951.0,0.051028]
[1733840603686,0.00010178,97958.0,97957.0,0.051024]
[1733840605079,0.004,97958.0,97957.0,0.102048]
[1733840605288,0.004,97958.0,97957.0,0.236248]
[1733840605983,0.00710749,97958.0,97957.0,0.236248]
[1733840607886,0.00710749,97958.0,97957.0,0.597048]
[1733840608589,0.00710749,97958.0,97957.0,0.411824]
[1733840609279,0.00710749,97958.0,97957.0,0.051024]
[1733840619406,0.05813149,97958.0,97957.0,0.051024]
[1733840619895,0.00710749,97958.0,97957.0,0.051024]
[1733840625699,0.00710749,97958.0,97957.0,0.411824]
[1733840626093,0.00710749,97958.0,97957.0,0.051024]
[1733840626689,0.00710749,97958.0,97957.0,0.411824]
[1733840626998,0.00710749,97958.0,97957.0,0.051024]
[1733840629890,0.00710749,97958.0,97957.0,0.29534789]
[1733840630397,0.00710749,97958.0,97957.0,0.051024]
[1733840634293,0.00710749,97958.0,97957.0,0.35642887]
[1733840634493,0.00710749,97958.0,97957.0,0.051024]
[1733840634904,4.9e-07,97958.0,97957.0,0.051024]
[1733840635198,0.09161898,97976.0,97957.0,0.41937871]
[1733840635403,0.10005824,97980.0,97979.0,0.051013]
[1733840635593,0.3608,97983.0,97982.0,0.051011]
[1733840635794,0.1449,97984.0,97978.0,0.24445011]
[1733840635999,0.1449,97984.0,97983.0,0.051011]
[1733840636296,0.23659879,97984.0,97983.0,0.051011]
[1733840636501,0.14497981,97984.0,97983.0,0.23430291]
[1733840636693,0.14497981,97984.0,97983.0,0.051011]
[1733840637099,0.14497981,97984.0,97982.0,0.18328874]
[1733840637100,0.50577981,97984.0,97982.0,0.18328874]
[1733840637404,0.50577981,97984.0,97971.0,0.30564253]
[1733840637405,0.15285779,97983.0,97967.0,0.18328874]
[1733840637700,0.50577981,97984.0,97970.0,0.051018]
[1733840637701,0.3608,97972.0,97970.0,0.051018]
[1733840637890,0.1344,97971.0,97970.0,0.051018]
[1733840639203,0.1344,97971.0,97970.0,0.053018]
[1733840639796,0.1344,97971.0,97970.0,0.05620869]
[1733840640299,0.3608,97972.0,97971.0,0.051017]
[1733840640600,0.3608,97972.0,97971.0,0.05420762]
[1733840641702,0.3608,97972.0,97971.0,0.05520762]
[1733840642205,0.3608,97972.0,97971.0,0.05920762]
[1733840642407,0.3714217,97974.0,97971.0,0.00819062]
[1733840642603,0.3608,97974.0,97973.0,0.23435413]
[1733840642804,0.3608,97974.0,97973.0,0.23754475]
[1733840643303,0.3608,97974.0,97973.0,0.05420662]
[1733840643506,0.3608,97974.0,97973.0,0.05420648]
[1733840643805,0.3608,97974.0,97973.0,0.05720648]
[1733840644104,0.3608,97974.0,97973.0,0.003]
[1733840644105,0.37148965,97974.0,97973.0,0.003]
[1733840644302,0.37148965,97974.0,97973.0,0.00619053]
[1733840644498,0.37148965,97974.0,97973.0,0.003]
[1733840644799,0.051017,97972.0,97971.0,0.001]
[1733840645199,0.051017,97972.0,97971.0,0.00319073]
[1733840646102,0.393977,97972.0,97971.0,0.00319073]
[1733840646308,0.393977,97972.0,97971.0,0.00719073]
[1733840647003,0.393977,97972.0,97971.0,0.00819073]
[1733840647503,0.44360669,97972.0,97971.0,0.005]
[1733840647704,0.051021,97965.0,97951.0,0.18333475]
[1733840647895,0.3608,97958.0,97952.0,0.00319099]
[1733840648101,0.3608,97958.0,97957.0,0.051024]
[1733840649104,0.1433,97964.0,97963.0,0.051021]
[1733840649306,0.15396884,97964.0,97963.0,0.051021]
[1733840650504,0.15396884,97964.0,97963.0,0.05421175]
[1733840650803,0.15496884,97964.0,97963.0,0.06321175]
[1733840652498,0.20598984,97964.0,97963.0,0.009]
[1733840652707,0.35879055,97964.0,97963.0,0.009]
[1733840653009,0.25561958,97964.0,97963.0,0.009]
[1733840653206,0.20459858,97964.0,97963.0,0.009]
[1733840653414,0.20459965,97964.0,97963.0,0.060021]
[1733840653607,0.15496884,97964.0,97963.0,0.060021]
[1733840654109,0.15496884,97964.0,97963.0,0.009]
[1733840654308,0.20598984,97964.0,97963.0,0.009]
[1733840654509,0.25562037,97964.0,97963.0,0.009]
[1733840654713,0.25562038,97964.0,97963.0,0.009]
[1733840655015,0.43909156,97964.0,97963.0,0.009]
[1733840655314,0.25573024,97964.0,97963.0,0.009]
[1733840656205,0.43907293,97964.0,97963.0,0.009]
[1733840656521,0.25573024,97964.0,97963.0,0.009]
[1733840658907,0.69552494,97964.0,97963.0,0.009]
[1733840659102,0.69552494,97964.0,97942.0,0.18486636]
[1733840659103,0.051032,97943.0,97942.0,0.00153161]
[1733840659310,0.41195041,97943.0,97942.0,0.00153161]
[1733840659607,0.41056144,97943.0,97927.0,0.05104]
[1733840659804,0.3608,97931.0,97927.0,0.05104]
[1733840660211,0.09157312,97928.0,97927.0,0.05104]
[1733840660412,0.3608,97931.0,97927.0,0.05104]
[1733840661208,0.3608,97931.0,97927.0,0.008]
[1733840661209,0.09153507,97928.0,97927.0,0.008]
[1733840661706,0.3618,97931.0,97927.0,0.008]
[1733840661707,0.3618,97931.0,97928.0,0.05104]
[1733840661907,0.3618,97931.0,97927.0,0.008]
[1733840661908,0.09152846,97930.0,97929.0,0.051039]
[1733840662112,0.45332846,97931.0,97930.0,0.051039]
[1733840662315,0.3618,97931.0,97930.0,0.051039]
[1733840663019,0.3608,97931.0,97930.0,0.051039]
[1733840663717,0.3618,97931.0,97930.0,0.051039]
[1733840664425,0.3618,97931.0,97927.0,0.004]
[1733840664620,0.412838,97931.0,97930.0,0.003]
[1733840664914,0.50436646,97931.0,97930.0,0.003]
[1733840665115,0.412838,97931.0,97930.0,0.003]
[1733840665519,0.50436646,97931.0,97930.0,0.003]
[1733840666021,0.412838,97931.0,97930.0,0.003]
[1733840666216,0.412838,97931.0,97927.0,0.004]
[1733840666419,0.0914691,97930.0,97927.0,0.05504]
[1733840666611,0.3618,97931.0,97930.0,0.051039]
[1733840666808,0.3618,97931.0,97927.0,0.004]
[1733840667718,0.45329231,97931.0,97930.0,0.003]
[1733840668115,0.45229231,97931.0,97930.0,0.003]
[1733840668416,0.45329231,97931.0,97930.0,0.003]
[1733840668627,0.50433031,97931.0,97930.0,0.003]
[1733840668814,0.412838,97931.0,97930.0,0.003]
[1733840669610,0.412838,97931.0,97911.0,0.1415]
[1733840669611,0.412838,97931.0,97913.0,0.051047]
[1733840669816,0.051045,97917.0,97913.0,0.051047]
[1733840670326,0.20011648,97921.0,97911.0,0.1415]
[1733840670623,0.10005824,97921.0,97920.0,0.051044]
[1733840670817,0.09145051,97929.0,97921.0,0.051043]
[1733840671010,0.09145051,97929.0,97922.0,0.1404]
[1733840671217,0.10005824,97930.0,97929.0,0.051039]
[1733840671818,0.09145051,97931.0,97930.0,0.051039]
[1733840672023,0.3608,97934.0,97930.0,0.051039]
[1733840672221,0.3608,97934.0,97926.0,0.051041]
[1733840672429,0.09146374,97928.0,97923.0,0.1317]
[1733840672726,0.05104,97928.0,97924.0,0.051041]
[1733840672920,0.09146374,97933.0,97927.0,0.05104]
[1733840673113,0.09146374,97929.0,97928.0,0.05104]
[1733840673311,0.001,97929.0,97928.0,0.05104]
[1733840673718,0.09147991,97931.0,97930.0,0.051039]
[1733840674026,0.3608,97934.0,97931.0,0.051038]
[1733840674327,0.3608,97934.0,97933.0,0.051037]
[1733840675814,0.45229442,97934.0,97933.0,0.051037]
[1733840676021,0.3608,97934.0,97933.0,0.051037]
[1733840676632,0.3618,97934.0,97933.0,0.051037]
[1733840676930,0.001,97934.0,97933.0,0.051037]
[1733840677522,0.001,97934.0,97933.0,0.05422838]
[1733840678315,0.052036,97934.0,97933.0,0.051037]
[1733840678715,0.052036,97934.0,97920.0,0.3608]
[1733840678716,0.001,97934.0,97920.0,0.36156]
[1733840678930,0.051042,97923.0,97922.0,0.051042]
[1733840679229,0.051045,97919.0,97917.0,0.051045]
[1733840679419,0.051045,97919.0,97911.0,0.1415]
[1733840679621,0.051047,97915.0,97914.0,0.00319212]
[1733840679831,0.051047,97915.0,97910.0,0.051049]
[1733840680026,0.12203866,97915.0,97914.0,0.051047]
[1733840680321,0.09157011,97918.0,97914.0,0.051047]
[1733840680528,0.09157011,97920.0,97919.0,0.051044]
[1733840680718,0.22215739,97924.0,97914.0,0.181947]
[1733840680719,0.10005824,97924.0,97923.0,0.051042]
[1733840680920,0.09157011,97925.0,97924.0,0.051042]
[1733840681120,0.3608,97927.0,97924.0,0.051042]
[1733840681321,0.3608,97927.0,97926.0,0.051041]
[1733840681733,0.48289915,97927.0,97926.0,0.051041]
[1733840682223,0.3608,97927.0,97926.0,0.051041]
[1733840683524,0.3618,97927.0,97926.0,0.051041]
[1733840683730,0.48496823,97927.0,97926.0,0.051041]
[1733840683924,0.09362019,97927.0,97926.0,0.051041]
[1733840684128,0.002,97927.0,97926.0,0.051041]
[1733840684317,0.002,97927.0,97926.0,0.05423269]
[1733840684726,0.002,97927.0,97926.0,0.23729068]
[1733840685024,0.002,97927.0,97926.0,0.05423269]
[1733840685425,0.002,97927.0,97926.0,0.06474529]
[1733840686127,0.001,97927.0,97926.0,0.06674529]
[1733840687125,0.09162019,97933.0,97932.0,0.051037]
[1733840687427,0.34364001,97936.0,97935.0,0.051036]
[1733840687619,0.34308,97936.0,97935.0,0.09094101]
[1733840687819,0.34308,97936.0,97935.0,0.05422769]
[1733840690237,0.34308,97936.0,97935.0,0.05522769]
[1733840691828,0.09167573,97941.0,97935.0,0.05522769]
[1733840691829,0.09167573,97941.0,97940.0,0.051033]
[1733840692130,0.09167573,97941.0,97940.0,0.05422469]
[1733840694230,0.01055811,97945.0,97940.0,0.05422469]
[1733840694231,0.01055811,97945.0,97942.0,0.051032]
[1733840694426,0.09161062,97946.0,97942.0,0.05422369]
[1733840694631,0.22222647,97950.0,97942.0,0.09100852]
[1733840694632,0.10005824,97950.0,97942.0,0.09100852]
[1733840694829,0.10005824,97950.0,97942.0,0.2374266]
[1733840695038,0.10005824,97950.0,97942.0,0.054223]
[1733840696230,0.00111841,97943.0,97942.0,0.23735025]
[1733840696434,0.00111841,97943.0,97942.0,0.054223]
[1733840696636,0.00111841,97943.0,97942.0,0.27413658]
[1733840696836,0.00111841,97943.0,97942.0,0.054223]
[1733840697029,0.00111841,97943.0,97942.0,0.23734944]
[1733840697236,0.00111841,97943.0,97942.0,0.054223]
[1733840697534,0.00211841,97943.0,97942.0,0.23734944]
[1733840697739,0.05315041,97943.0,97942.0,0.18312644]
[1733840697937,0.00211841,97943.0,97941.0,0.18312644]
[1733840698127,0.186532,97942.0,97941.0,0.051032]
[1733840698541,0.30862091,97942.0,97941.0,0.051032]
[1733840698841,0.051034,97940.0,97930.0,0.18312644]
[1733840699027,0.3608,97938.0,97923.0,0.01041663]
[1733840699227,0.3608,97938.0,97922.0,0.59496844]
[1733840699228,0.10005824,97933.0,97932.0,0.051037]
[1733840699541,0.3608,97938.0,97933.0,0.051037]
[1733840699837,0.3608,97938.0,97937.0,0.051035]
[1733840700143,0.48288794,97938.0,97926.0,0.18312644]
[1733840700343,0.48288794,97938.0,97899.0,0.36611599]
[1733840700344,0.09159034,97933.0,97929.0,0.051039]
[1733840700640,0.3608,97930.0,97929.0,0.051039]
[1733840701431,0.15254833,97935.0,97932.0,0.051037]
[1733840701642,0.001,97938.0,97937.0,0.051035]
[1733840702337,0.00011841,97943.0,97937.0,0.051035]
[1733840702338,0.00011841,97943.0,97942.0,0.051032]
[1733840702534,0.00011841,97943.0,97942.0,0.411832]
[1733840702837,4.1e-07,97943.0,97942.0,0.44873272]
[1733840703042,0.19163923,97960.0,97959.0,0.051023]
[1733840703236,0.19163923,97960.0,97949.0,0.051028]
[1733840703237,0.09158099,97961.0,97960.0,0.051023]
[1733840703434,0.22216627,97969.0,97957.0,0.18309646]
[1733840703637,0.09152378,97959.0,97958.0,0.23412046]
[1733840703837,0.12210803,97966.0,97958.0,0.051024]
[1733840704036,0.12210803,97967.0,97966.0,0.051021]
[1733840704235,7.819e-05,97967.0,97966.0,0.051021]
[1733840705843,0.00907819,97967.0,97966.0,0.051021]
[1733840706346,0.01407819,97967.0,97966.0,0.051021]
[1733840706840,0.01407819,97967.0,97955.0,0.3608]
[1733840707040,0.01407819,97967.0,97942.0,0.3608]
[1733840707041,0.3608,97956.0,97944.0,0.051032]
[1733840707245,0.3608,97956.0,97947.0,0.051031]
[1733840707246,0.3608,97948.0,97947.0,0.051031]
[1733840707541,0.051029,97952.0,97947.0,0.051031]
[1733840707542,0.051029,97951.0,97947.0,0.051031]
[1733840707747,0.183629,97951.0,97947.0,0.051031]
[1733840707934,0.1326,97951.0,97936.0,0.01058396]
[1733840708136,0.10005824,97946.0,97945.0,0.051032]
[1733840708334,0.1326,97951.0,97944.0,0.3608]
[1733840709033,0.1326,97951.0,97934.0,0.37210906]
[1733840709034,0.3608,97949.0,97934.0,0.37210906]
[1733840709237,0.3608,97949.0,97930.0,0.4184]
[1733840709238,0.411836,97936.0,97930.0,0.051799]
[1733840709451,0.411836,97936.0,97930.0,0.051039]
[1733840709452,8.808e-05,97935.0,97930.0,0.051039]
[1733840709643,0.09158725,97935.0,97930.0,0.051039]
[1733840709844,0.09158725,97935.0,97925.0,0.051041]
[1733840709845,0.051037,97933.0,97925.0,0.051041]
[1733840710045,0.09152682,97926.0,97925.0,0.051041]
[1733840710345,0.12210803,97933.0,97932.0,0.051037]
[1733840710541,0.12210803,97934.0,97933.0,0.051037]
[1733840711250,8.808e-05,97935.0,97927.0,0.05104]
[1733840711432,0.051038,97931.0,97927.0,0.05104]
[1733840711939,0.051038,97931.0,97922.0,0.3608]
[1733840712140,0.17313508,97931.0,97922.0,0.3608]
[1733840712346,0.09158403,97923.0,97922.0,0.411843]
[1733840712639,0.05104,97927.0,97922.0,0.3608]
[1733840712945,0.1274,97926.0,97923.0,0.051042]
[1733840713843,0.1274,97926.0,97924.0,0.051042]
[1733840714037,0.1274,97926.0,97925.0,0.051041]
[1733840714247,0.12212259,97930.0,97922.0,0.3608]
[1733840714538,0.12212259,97930.0,97928.0,0.051039]
[1733840715033,0.12212259,97929.0,97928.0,0.051039]
[1733840715239,0.12212259,97930.0,97928.0,0.051039]
[1733840715637,0.12212259,97930.0,97922.0,0.3608]
[1733840715638,0.12212259,97930.0,97924.0,0.051042]